fUSD/lending_fUSD_20250208
["ID","MTS","AMOUNT","RATE_DAILY","PERIOD"]
[352257247,1739019078077,-2639.64,0.00010805,2]
[352257248,1739019078087,-500.0,0.00010805,2]
[352257249,1739019078097,-556.57,0.00010805,2]
[352257250,1739019078106,-2409.54,0.00010805,2]
[352257251,1739019078116,-500.0,0.00010805,2]
[352257252,1739019078125,-521.61,0.00010805,2]
[352257253,1739019078135,-1454.28,0.00010805,2]
[352257254,1739019078145,-500.0,0.00010805,2]
[352257255,1739019078155,-500.0,0.00010805,2]
[352257256,1739019078164,-1765.01,0.00010805,2]
[352257257,1739019078174,-1985.75,0.00010805,2]
[352257258,1739019078183,-500.0,0.00010805,2]
[352257259,1739019078193,-1199.55,0.00010805,2]
[352257260,1739019078202,-871.18,0.00010805,2]
[352257261,1739019078212,-2599.62,0.00010805,2]
[352257262,1739019078221,-1854.84,0.00010805,2]
[352257263,1739019078230,-500.0,0.00010805,2]
[352257264,1739019078240,-893.79,0.00010805,2]
[352257265,1739019078249,-500.0,0.00010805,2]
[352257266,1739019078259,-500.0,0.00010805,2]
[352257267,1739019078268,-1978.01,0.00010805,2]
[352257268,1739019078277,-500.0,0.00010805,2]
[352257269,1739019078286,-4080.58,0.00010805,2]
[352257270,1739019078295,-1719.91,0.00010805,2]
[352257271,1739019078305,-4167.24,0.00010805,2]
[352257272,1739019078315,-500.0,0.00010805,2]
[352257273,1739019078335,-12253.86,0.00010805,2]
[352257274,1739019078344,-1340.27,0.00010805,2]
[352257275,1739019078353,-1039.39,0.00010805,2]
[352257276,1739019078363,-500.0,0.00010805,2]
[352257277,1739019078372,-500.0,0.00010805,2]
[352257278,1739019078382,-1640.04,0.00010805,2]
[352257279,1739019078391,-500.0,0.00010805,2]
[352257280,1739019078403,-1083.05,0.00010805,2]
[352257281,1739019078413,-500.0,0.00010805,2]
[352257282,1739019078422,-1904.32,0.00010805,2]
[352257283,1739019078432,-802.41,0.00010805,2]
[352257284,1739019078442,-500.0,0.00010805,2]
[352257285,1739019078452,-500.0,0.00010805,2]
[352257286,1739019078461,-500.0,0.00010805,2]
[352257287,1739019078472,-4946.08,0.00010805,2]
[352257288,1739019078482,-1721.15,0.00010805,2]
[352257289,1739019078492,-1252.24,0.00010805,2]
[352257290,1739019078502,-500.0,0.00010805,2]
[352257291,1739019078511,-1389.14,0.00010805,2]
[352257292,1739019078521,-1691.94,0.00010805,2]
[352257293,1739019078531,-1132.83,0.00010805,2]
[352257294,1739019078540,-1046.15,0.00010805,2]
[352257295,1739019078549,-2627.54,0.00010805,2]
[352257296,1739019078559,-519.94,0.00010805,2]
[352257297,1739019078568,-512.52,0.00010805,2]
[352257298,1739019078578,-502.90108215,0.00010805,2]
[352257299,1739019078588,-3945.23,0.00010805,2]
[352257300,1739019078598,-500.0,0.00010805,2]
[352257301,1739019078608,-412.98535426,0.00010805,2]
[352257302,1739019078617,-1727.91,0.00010805,2]
[352257303,1739019078626,-500.0,0.00010805,2]
[352257304,1739019078635,-500.0,0.00010805,2]
[352257305,1739019078645,-500.0,0.00010805,2]
[352257306,1739019078654,-3984.19,0.00010805,2]
[352257307,1739019078663,-500.0,0.00010805,2]
[352257308,1739019078672,-949.44,0.00010805,2]
[352257309,1739019078681,-500.0,0.00010805,2]
[352257310,1739019078690,-3057.43,0.00010805,2]
[352257311,1739019078700,-714.81,0.00010805,2]
[352257312,1739019078710,-4918.46,0.00010805,2]
[352257313,1739019078719,-618.76,0.00010805,2]
[352257314,1739019078728,-1900.09,0.00010805,2]
[352257315,1739019078738,-500.0,0.00010805,2]
[352257316,1739019078748,-2718.67,0.00010805,2]
[352257317,1739019078757,-1307.78,0.00010805,2]
[352257318,1739019078767,-500.0,0.00010805,2]
[352257319,1739019078777,-500.0,0.00010805,2]
[352257320,1739019078786,-721.31,0.00010805,2]
[352257321,1739019078796,-255.37,0.00010805,2]
[352257322,1739019078805,-500.0,0.00010805,2]
[352257323,1739019078815,-500.0,0.00010805,2]
[352257324,1739019078825,-500.0,0.00010805,2]
[352257325,1739019078834,-500.0,0.00010805,2]
[352257326,1739019078844,-570.33,0.00010805,2]
[352257327,1739019078855,-2870.05,0.00010805,2]
[352257328,1739019078864,-860.75,0.00010805,2]
[352257329,1739019078874,-500.0,0.00010805,2]
[352257330,1739019078883,-3205.41,0.00010805,2]
[352257331,1739019078893,-500.0,0.00010805,2]
[352257332,1739019078903,-3098.11,0.00010805,2]
[352257333,1739019078912,-500.0,0.00010805,2]
[352257334,1739019078921,-500.0,0.00010805,2]
[352257335,1739019078931,-1823.36,0.00010805,2]
[352257336,1739019078940,-600.49,0.00010805,2]
[352257337,1739019078950,-1639.56,0.00010805,2]
[352257338,1739019078960,-2230.91,0.00010805,2]
[352257339,1739019078970,-5256.2,0.00010805,2]
[352257340,1739019078980,-500.0,0.00010805,2]
[352257341,1739019078990,-1950.99,0.00010805,2]
[352257342,1739019079000,-755.89,0.00010805,2]
[352257343,1739019079009,-1465.86,0.00010805,2]
[352257344,1739019079019,-730.02,0.00010805,2]
[352257345,1739019079029,-500.0,0.00010805,2]
[352257346,1739019079039,-500.0,0.00010805,2]
[352257347,1739019079049,-597.26,0.00010805,2]
[352257348,1739019079059,-3908.9,0.00010805,2]
[352257349,1739019079068,-500.0,0.00010805,2]
[352257350,1739019079078,-1496.15,0.00010805,2]
[352257351,1739019079088,-500.0,0.00010805,2]
[352257352,1739019079098,-3150.83,0.00010805,2]
[352257353,1739019079107,-500.0,0.00010805,2]
[352257354,1739019079117,-3721.01,0.00010805,2]
[352257355,1739019079127,-500.0,0.00010805,2]
[352257356,1739019079136,-2167.97,0.00010805,2]
[352257357,1739019079145,-1347.86,0.00010805,2]
[352257358,1739019079155,-1543.2,0.00010805,2]
[352257359,1739019079164,-500.0,0.00010805,2]
[352257360,1739019079174,-3577.47,0.00010805,2]
[352257361,1739019079183,-549.39,0.00010806,2]
[352257362,1739019079193,-500.0,0.00010806,2]
[352257363,1739019079202,-500.0,0.00010806,2]
[352257364,1739019079212,-500.0,0.00010806,2]
[352257365,1739019079221,-500.0,0.00010806,2]
[352257366,1739019079230,-602.87,0.00010806,2]
[352257367,1739019079240,-1367.43,0.00010806,2]
[352257368,1739019079249,-567.33,0.00010806,2]
[352257369,1739019079259,-742.72,0.00010806,2]
[352257370,1739019079268,-1443.9,0.00010806,2]
[352257371,1739019079278,-500.0,0.00010806,2]
[352257372,1739019079287,-1546.44,0.00010806,2]
[352257373,1739019079297,-2113.11,0.00010806,2]
[352257374,1739019079307,-1746.31,0.00010806,2]
[352257375,1739019079318,-825.67,0.00010806,2]
[352257376,1739019079337,-706.55,0.00010806,2]
[352257377,1739019079347,-754.09,0.00010806,2]
[352257378,1739019079357,-500.0,0.00010806,2]
[352257379,1739019079366,-1816.29,0.00010806,2]
[352257380,1739019079376,-792.06,0.00010806,2]
[352257381,1739019079385,-1800.25,0.00010806,2]
[352257382,1739019079395,-500.0,0.00010806,2]
[352257383,1739019079407,-1741.18,0.00010806,2]
[352257384,1739019079416,-708.43,0.00010806,2]
[352257385,1739019079425,-820.36,0.00010806,2]
[352257386,1739019079435,-500.0,0.00010806,2]
[352257387,1739019079445,-879.9,0.00010806,2]
[352257388,1739019079454,-566.23,0.00010806,2]
[352257389,1739019079463,-500.0,0.00010806,2]
[352257390,1739019079474,-668.43,0.00010806,2]
[352257391,1739019079485,-697.71,0.00010806,2]
[352257392,1739019079494,-500.0,0.00010806,2]
[352257393,1739019079504,-922.83,0.00010806,2]
[352257394,1739019079514,-501.84404982,0.00010806,2]
[352257395,1739019079523,-1031.15,0.00010806,2]
[352257396,1739019079533,-500.0,0.00010806,2]
[352257397,1739019079543,-1002.25288465,0.00010821,2]
[352257398,1739019079552,-1000.0,0.00010821,2]
[352257399,1739019079563,-2027.975,0.00010837,2]
[352257400,1739019079572,-1272.0,0.00010837,2]
[352257401,1739019079582,-568.0,0.00010837,2]
[352257402,1739019079657,-638.0,0.00010837,2]
[352257403,1739019079670,-150.0,0.00010837,2]
[352257404,1739019079681,-1825.0,0.00010837,2]
[352257405,1739019079690,-469.702,0.00010837,2]
[352257406,1739019079699,-4024.0,0.00010837,2]
[352257407,1739019079709,-150.0,0.00010837,2]
[352257408,1739019079718,-3912.0,0.00010837,2]
[352257409,1739019079727,-201.97,0.00010837,2]
[352257410,1739019079737,-150.0,0.00010837,2]
[352257411,1739019079745,-1007.0,0.00010837,2]
[352257412,1739019079755,-150.42,0.00010837,2]
[352257413,1739019079764,-1108.0,0.00010837,2]
[352257414,1739019079773,-150.0,0.00010837,2]
[352257415,1739019079782,-414.86324248,0.00010846,2]
[352257416,1739019079791,-250.0,0.0001086,2]
[352257417,1739019079800,-600.39062522,0.000109,2]
[352257418,1739019079810,-201.0,0.000109,2]
[352257419,1739019079820,-174.22140754,0.000109,2]
[352257420,1739019079829,-151.0,0.000109,2]
[352257421,1739019079838,-207.48922038,0.000109,2]
[352257422,1739019079847,-2019.07866784,0.000109,2]
[352257423,1739019079857,-1050.95080174,0.000109,2]
[352257424,1739019079867,-162.09347598,0.000109,2]
[352257425,1739019079876,-162.09347594,0.000109,2]
[352257426,1739019079885,-162.09347594,0.000109,2]
[352257427,1739019079894,-162.09347594,0.000109,2]
[352257428,1739019079903,-1587.1279716,0.00010934,2]
[352257429,1739019079913,-2276.6168424,0.00010934,2]
[352257430,1739019079922,-500.0,0.0001094,2]
[352257431,1739019079932,-500.0,0.0001094,2]
[352257432,1739019079941,-500.0,0.0001094,2]
[352257433,1739019079950,-816.95,0.0001094,2]
[352257434,1739019079960,-599.04,0.0001094,2]
[352257435,1739019079969,-500.0,0.00010941,2]
[352257436,1739019079979,-500.0,0.00010941,2]
[352257437,1739019079988,-500.0,0.00010941,2]
[352257438,1739019079997,-500.0,0.00010941,2]
[352257439,1739019080006,-500.0,0.00010941,2]
[352257440,1739019080015,-500.0,0.00010941,2]
[352257441,1739019080025,-500.0,0.00010941,2]
[352257442,1739019080034,-500.0,0.00010941,2]
[352257443,1739019080043,-500.0,0.00010941,2]
[352257444,1739019080052,-500.0,0.00010941,2]
[352257445,1739019080061,-500.0,0.00010941,2]
[352257446,1739019080070,-500.0,0.00010941,2]
[352257447,1739019080079,-500.0,0.00010941,2]
[352257448,1739019080088,-515.97,0.00010941,2]
[352257449,1739019080097,-500.0,0.00010941,2]
[352257450,1739019080107,-648.2,0.00010941,2]
[352257451,1739019080116,-500.0,0.00010941,2]
[352257452,1739019080125,-500.0,0.00010941,2]
[352257453,1739019080134,-500.0,0.00010941,2]
[352257454,1739019080143,-3008.63252,0.00010941,2]
[352257455,1739019080152,-500.0,0.00010941,2]
[352257456,1739019080161,-2728.309725,0.00010941,2]
[352257457,1739019080170,-3964.16,0.00010941,2]
[352257458,1739019080179,-500.0,0.00010941,2]
[352257459,1739019080195,-500.0,0.00010941,2]
[352257460,1739019080205,-633.10561043,0.00010941,2]
[352257461,1739019080215,-500.0,0.00010941,2]
[352257462,1739019080226,-1789.1,0.00010941,2]
[352257463,1739019080235,-500.0,0.00010941,2]
[352257464,1739019080244,-500.0,0.00010941,2]
[352257465,1739019080255,-500.0,0.00010941,2]
[352257466,1739019080265,-500.0,0.00010941,2]
[352257467,1739019080274,-2632.84,0.00010941,2]
[352257468,1739019080283,-500.0,0.00010941,2]
[352257469,1739019080293,-1472.27,0.00010941,2]
[352257470,1739019080302,-500.0,0.00010941,2]
[352257471,1739019080312,-500.0,0.00010941,2]
[352257472,1739019080321,-500.0,0.00010941,2]
[352257473,1739019080330,-1246.73,0.00010941,2]
[352257474,1739019080340,-500.0,0.00010941,2]
[352257475,1739019080349,-732.86,0.00010941,2]
[352257476,1739019080359,-1635.35,0.00010941,2]
[352257477,1739019080368,-957.45,0.00010941,2]
[352257478,1739019080379,-154.500294,0.00010941,2]
[352257479,1739019080390,-500.0,0.00010941,2]
[352257480,1739019080402,-2129.11,0.00010941,2]
[352257481,1739019080412,-500.0,0.00010941,2]
[352257482,1739019080421,-500.0,0.00010941,2]
[352257483,1739019080430,-1486.98,0.00010941,2]
[352257484,1739019080441,-500.0,0.00010941,2]
[352257485,1739019080451,-500.0,0.00010941,2]
[352257486,1739019080460,-500.0,0.00010941,2]
[352257487,1739019080470,-719.04,0.00010941,2]
[352257488,1739019080482,-500.0,0.00010941,2]
[352257489,1739019080493,-2812.8,0.00010941,2]
[352257490,1739019080504,-500.0,0.00010941,2]
[352257491,1739019080514,-500.0,0.00010941,2]
[352257492,1739019080524,-500.0,0.00010941,2]
[352257493,1739019080540,-500.0,0.00010941,2]
[352257494,1739019080551,-500.0,0.00010941,2]
[352257495,1739019080562,-500.0,0.00010941,2]
[352257496,1739019080571,-500.0,0.00010941,2]
[352257497,1739019080580,-1251.32,0.00010941,2]
[352257498,1739019080590,-500.0,0.00010941,2]
[352257499,1739019080600,-500.0,0.00010941,2]
[352257500,1739019080611,-2408.46,0.00010941,2]
[352257501,1739019080619,-576.34,0.00010941,2]
[352257502,1739019080629,-2049.94,0.00010941,2]
[352257503,1739019080638,-506.48956664,0.00010941,2]
[352257504,1739019080647,-2596.03,0.00010941,2]
[352257505,1739019080657,-9020.31,0.00010941,2]
[352257506,1739019080666,-500.0,0.00010941,2]
[352257507,1739019080676,-1786.43,0.00010941,2]
[352257508,1739019080685,-694.65,0.00010941,2]
[352257509,1739019080694,-1924.37,0.00010941,2]
[352257510,1739019080703,-3419.0,0.00010941,2]
[352257511,1739019080712,-1572.95,0.00010941,2]
[352257512,1739019080721,-500.0,0.00010941,2]
[352257513,1739019080730,-1504.29,0.00010941,2]
[352257514,1739019080739,-500.0,0.00010941,2]
[352257515,1739019080748,-2063.74,0.00010941,2]
[352257516,1739019080758,-2135.24,0.00010941,2]
[352257517,1739019080767,-500.0,0.00010941,2]
[352257518,1739019080776,-2347.77,0.00010941,2]
[352257519,1739019080786,-3498.02,0.00010941,2]
[352257520,1739019080796,-500.0,0.00010941,2]
[352257521,1739019080806,-500.0,0.00010941,2]
[352257522,1739019080817,-500.0,0.00010941,2]
[352257523,1739019080826,-500.0,0.00010941,2]
[352257524,1739019080837,-2405.82,0.00010941,2]
[352257525,1739019080847,-2856.96,0.00010941,2]
[352257526,1739019080856,-500.0,0.00010941,2]
[352257527,1739019080865,-1222.26,0.00010941,2]
[352257528,1739019080875,-500.0,0.00010941,2]
[352257529,1739019080884,-384.84842342,0.00010941,2]
[352257530,1739019080894,-2445.85,0.00010941,2]
[352257531,1739019080904,-500.0,0.00010941,2]
[352257532,1739019080913,-1846.25,0.00010941,2]
[352257533,1739019080922,-500.0,0.00010941,2]
[352257534,1739019080931,-500.0,0.00010941,2]
[352257535,1739019080940,-3417.47,0.00010941,2]
[352257536,1739019080950,-500.0,0.00010941,2]
[352257537,1739019080959,-1061.22,0.00010941,2]
[352257538,1739019080968,-4021.02,0.00010941,2]
[352257539,1739019080978,-6046.06,0.00010941,2]
[352257540,1739019080987,-3135.85,0.00010941,2]
[352257541,1739019080997,-500.0,0.00010941,2]
[352257542,1739019081008,-2712.34,0.00010941,2]
[352257543,1739019081018,-500.0,0.00010941,2]
[352257544,1739019081028,-500.0,0.00010941,2]
[352257545,1739019081038,-500.0,0.00010941,2]
[352257546,1739019081048,-500.0,0.00010941,2]
[352257547,1739019081058,-500.0,0.00010941,2]
[352257548,1739019081072,-3780.84,0.00010941,2]
[352257549,1739019081082,-500.0,0.00010941,2]
[352257550,1739019081092,-500.0,0.00010941,2]
[352257551,1739019081101,-500.0,0.00010941,2]
[352257552,1739019081110,-500.0,0.00010941,2]
[352257553,1739019081119,-1697.73,0.00010941,2]
[352257554,1739019081128,-4117.97,0.00010941,2]
[352257555,1739019081138,-500.0,0.00010941,2]
[352257556,1739019081147,-500.0,0.00010941,2]
[352257557,1739019081156,-500.0,0.00010941,2]
[352257558,1739019081166,-500.0,0.00010941,2]
[352257559,1739019081175,-1473.95,0.00010941,2]
[352257560,1739019081185,-1832.0,0.00010941,2]
[352257561,1739019081194,-3636.89,0.00010941,2]
[352257562,1739019081203,-500.0,0.00010941,2]
[352257563,1739019081212,-500.0,0.00010941,2]
[352257564,1739019081223,-1785.52,0.00010941,2]
[352257565,1739019081233,-500.0,0.00010941,2]
[352257566,1739019081242,-4152.92,0.00010941,2]
[352257567,1739019081251,-500.0,0.00010941,2]
[352257568,1739019081261,-500.0,0.00010941,2]
[352257569,1739019081273,-818.07,0.00010941,2]
[352257570,1739019081282,-500.0,0.00010941,2]
[352257571,1739019081291,-500.0,0.00010941,2]
[352257572,1739019081301,-1570.09,0.00010941,2]
[352257573,1739019081313,-500.0,0.00010941,2]
[352257574,1739019081322,-2671.65,0.00010941,2]
[352257575,1739019081332,-500.0,0.00010941,2]
[352257576,1739019081341,-500.0,0.00010941,2]
[352257577,1739019081351,-500.0,0.00010941,2]
[352257578,1739019081360,-1029.34,0.00010941,2]
[352257579,1739019081370,-500.0,0.00010941,2]
[352257580,1739019081380,-679.98,0.00010941,2]
[352257581,1739019081391,-500.0,0.00010941,2]
[352257582,1739019081405,-862.4,0.00010941,2]
[352257583,1739019081417,-1691.54,0.00010941,2]
[352257584,1739019081428,-500.0,0.00010941,2]
[352257585,1739019081439,-500.0,0.00010941,2]
[352257586,1739019081451,-500.0,0.00010941,2]
[352257587,1739019081461,-591.73874994,0.00010941,2]
[352257588,1739019081470,-500.0,0.00010942,2]
[352257589,1739019081482,-500.0,0.00010942,2]
[352257590,1739019081491,-500.0,0.00010942,2]
[352257591,1739019081500,-500.0,0.00010942,2]
[352257592,1739019081510,-500.0,0.00010942,2]
[352257593,1739019081519,-500.0,0.00010942,2]
[352257594,1739019081528,-500.0,0.00010942,2]
[352257595,1739019081538,-500.0,0.00010942,2]
[352257596,1739019081547,-500.0,0.00010942,2]
[352257597,1739019081557,-500.0,0.00010942,2]
[352257598,1739019081567,-500.0,0.00010942,2]
[352257599,1739019081577,-500.0,0.00010942,2]
[352257600,1739019081586,-500.0,0.00010942,2]
[352257601,1739019081595,-500.0,0.00010942,2]
[352257602,1739019081604,-500.0,0.00010942,2]
[352257603,1739019081613,-500.0,0.00010942,2]
[352257604,1739019081623,-500.0,0.00010942,2]
[352257605,1739019081632,-500.0,0.00010942,2]
[352257606,1739019081641,-500.0,0.00010942,2]
[352257607,1739019081651,-500.0,0.00010942,2]
[352257608,1739019081660,-500.0,0.00010942,2]
[352257609,1739019081669,-500.0,0.00010942,2]
[352257610,1739019081678,-546.69,0.00010942,2]
[352257611,1739019081688,-1162.43,0.00010942,2]
[352257612,1739019081697,-1135.27,0.00010942,2]
[352257613,1739019081706,-500.0,0.00010942,2]
[352257614,1739019081715,-681.58,0.00010942,2]
[352257615,1739019081725,-1144.8,0.00010942,2]
[352257616,1739019081734,-500.0,0.00010942,2]
[352257617,1739019081743,-500.0,0.00010942,2]
[352257618,1739019081753,-727.04,0.00010942,2]
[352257619,1739019081762,-810.06,0.00010942,2]
[352257620,1739019081772,-500.0,0.00010942,2]
[352257621,1739019081781,-811.55,0.00010942,2]
[352257622,1739019081791,-1783.61,0.00010942,2]
[352257623,1739019081800,-1107.8,0.00010942,2]
[352257624,1739019081810,-500.0,0.00010942,2]
[352257625,1739019081821,-500.0,0.00010942,2]
[352257626,1739019081830,-801.13,0.00010942,2]
[352257627,1739019081839,-500.0,0.00010942,2]
[352257628,1739019081849,-611.29,0.00010942,2]
[352257629,1739019081859,-500.0,0.00010942,2]
[352257630,1739019081870,-500.0,0.00010942,2]
[352257631,1739019081880,-500.0,0.00010942,2]
[352257632,1739019081889,-1050.84,0.00010942,2]
[352257633,1739019081899,-700.34,0.00010942,2]
[352257634,1739019081910,-822.05,0.00010942,2]
[352257635,1739019081921,-500.0,0.00010942,2]
[352257636,1739019081930,-500.0,0.00010942,2]
[352257637,1739019081941,-500.0,0.00010942,2]
[352257638,1739019081951,-596.95,0.00010942,2]
[352257639,1739019081961,-566.69,0.00010942,2]
[352257640,1739019081971,-516.81,0.00010942,2]
[352257641,1739019081981,-500.0,0.00010942,2]
[352257642,1739019081990,-1602.74,0.00010942,2]
[352257643,1739019082000,-655.84,0.00010942,2]
[352257644,1739019082010,-634.65,0.00010942,2]
[352257645,1739019082019,-784.6,0.00010942,2]
[352257646,1739019082028,-686.17,0.00010942,2]
[352257647,1739019082038,-1408.14,0.00010942,2]
[352257648,1739019082047,-500.0,0.00010942,2]
[352257649,1739019082057,-500.0,0.00010942,2]
[352257650,1739019082069,-641.09,0.00010942,2]
[352257651,1739019082078,-645.26,0.00010942,2]
[352257652,1739019082087,-1518.89,0.00010942,2]
[352257653,1739019082096,-523.0,0.00010942,2]
[352257654,1739019082106,-601.38,0.00010942,2]
[352257655,1739019082116,-1614.82,0.00010942,2]
[352257656,1739019082127,-500.0,0.00010942,2]
[352257657,1739019082137,-500.0,0.00010942,2]
[352257658,1739019082146,-500.0,0.00010942,2]
[352257659,1739019082156,-924.8,0.00010942,2]
[352257660,1739019082165,-584.46,0.00010942,2]
[352257661,1739019082174,-566.77,0.00010942,2]
[352257662,1739019082183,-711.62,0.00010942,2]
[352257663,1739019082193,-534.43,0.00010942,2]
[352257664,1739019082204,-1238.8,0.00010942,2]
[352257665,1739019082216,-160.14704442,0.00010942,2]
[352257666,1739019082226,-500.0,0.00010942,2]
[352257667,1739019082236,-621.2,0.00010942,2]
[352257668,1739019082246,-500.0,0.00010942,2]
[352257669,1739019082257,-1258.69,0.00010942,2]
[352257670,1739019082268,-843.8,0.00010942,2]
[352257671,1739019082278,-500.0,0.00010942,2]
[352257672,1739019082290,-500.0,0.00010942,2]
[352257673,1739019082300,-500.0,0.00010942,2]
[352257674,1739019082310,-500.0,0.00010942,2]
[352257675,1739019082320,-500.0,0.00010942,2]
[352257676,1739019082330,-1577.24,0.00010942,2]
[352257677,1739019082339,-500.0,0.00010942,2]
[352257678,1739019082349,-558.66,0.00010942,2]
[352257679,1739019082359,-501.21391441,0.00010942,2]
[352257680,1739019082368,-732.41,0.00010942,2]
[352257681,1739019082378,-500.0,0.00010942,2]
[352257682,1739019082387,-500.0,0.00010942,2]
[352257683,1739019082397,-668.02,0.00010942,2]
[352257684,1739019082409,-190.56967336,0.00010942,2]
[352257685,1739019082418,-1376.68,0.00010942,2]
[352257686,1739019082427,-578.18,0.00010942,2]
[352257687,1739019082437,-1234.59,0.00010942,2]
[352257688,1739019082447,-500.0,0.00010942,2]
[352257689,1739019082456,-545.13,0.00010942,2]
[352257690,1739019082465,-500.0,0.00010942,2]
[352257691,1739019082475,-500.0,0.00010942,2]
[352257692,1739019082486,-702.19,0.00010942,2]
[352257693,1739019082496,-500.0,0.00010942,2]
[352257694,1739019082506,-500.0,0.00010942,2]
[352257695,1739019082515,-664.46,0.00010942,2]
[352257696,1739019082524,-1351.05,0.00010942,2]
[352257697,1739019082533,-672.31,0.00010942,2]
[352257698,1739019082543,-848.69,0.00010942,2]
[352257699,1739019082552,-500.0,0.00010942,2]
[352257700,1739019082561,-500.0,0.00010942,2]
[352257701,1739019082573,-698.15,0.00010942,2]
[352257702,1739019082582,-961.88,0.00010942,2]
[352257703,1739019082592,-1098.18,0.00010942,2]
[352257704,1739019082601,-500.0,0.00010942,2]
[352257705,1739019082611,-500.0,0.00010942,2]
[352257706,1739019082621,-1230.69,0.00010942,2]
[352257707,1739019082631,-500.0,0.00010942,2]
[352257708,1739019082641,-500.0,0.00010942,2]
[352257709,1739019082650,-500.0,0.00010942,2]
[352257710,1739019082660,-500.0,0.00010942,2]
[352257711,1739019082669,-502.37,0.00010942,2]
[352257712,1739019082679,-500.0,0.00010942,2]
[352257713,1739019082690,-500.0,0.00010942,2]
[352257714,1739019082700,-547.92,0.00010942,2]
[352257715,1739019082711,-408.25917516,0.00010942,2]
[352257716,1739019082721,-589.64,0.00010942,2]
[352257717,1739019082731,-736.0,0.00010942,2]
[352257718,1739019082743,-500.0,0.00010942,2]
[352257719,1739019082754,-500.0,0.00010942,2]
[352257720,1739019082763,-500.0,0.00010942,2]
[352257721,1739019082772,-500.0,0.00010942,2]
[352257722,1739019082782,-785.96,0.00010942,2]
[352257723,1739019082791,-509.34744137,0.00010942,2]
[352257724,1739019082801,-664.98,0.00010942,2]
[352257725,1739019082811,-500.0,0.00010942,2]
[352257726,1739019082822,-500.0,0.00010942,2]
[352257727,1739019082831,-504.79,0.00010942,2]
[352257728,1739019082841,-500.0,0.00010942,2]
[352257729,1739019082851,-500.0,0.00010942,2]
[352257730,1739019082860,-739.53,0.00010942,2]
[352257731,1739019082870,-1829.05,0.00010942,2]
[352257732,1739019082879,-500.0,0.00010942,2]
[352257733,1739019082893,-500.0,0.00010942,2]
[352257734,1739019082906,-500.0,0.00010942,2]
[352257735,1739019082916,-500.0,0.00010942,2]
[352257736,1739019082926,-500.0,0.00010942,2]
[352257737,1739019082937,-749.8,0.00010942,2]
[352257738,1739019082947,-1500.55,0.00010942,2]
[352257739,1739019082958,-550.9,0.00010942,2]
[352257740,1739019082968,-625.61,0.00010942,2]
[352257741,1739019082979,-500.0,0.00010942,2]
[352257742,1739019082989,-762.56,0.00010942,2]
[352257743,1739019082999,-651.58,0.00010942,2]
[352257744,1739019083008,-688.8,0.00010942,2]
[352257745,1739019083018,-500.0,0.00010942,2]
[352257746,1739019083028,-503.93,0.00010942,2]